bitfinex/quotes_BTCUSD_20251207
["timestamp","ask_amount","ask_price","bid_price","bid_amount"]
[1765129115382,0.03475123,90915.0,90914.0,0.08617685]
[1765129115603,0.21996058,90926.0,90914.0,0.08617685]
[1765129115604,0.21994699,90931.0,90924.0,0.01099819]
[1765129115813,0.02871747,90930.0,90929.0,0.02220398]
[1765129116012,0.40492307,90940.0,90939.0,0.02220398]
[1765129116220,0.01099565,90945.0,90941.0,0.02220398]
[1765129116421,0.23090042,90949.0,90948.0,0.02220398]
[1765129116422,0.2308996,90949.0,90948.0,0.02220398]
[1765129116625,0.2486196,90949.0,90948.0,0.02220398]
[1765129117276,0.21992038,90942.0,90941.0,0.02381685]
[1765129117509,0.21993006,90938.0,90937.0,0.02220398]
[1765129117724,0.23094547,90931.0,90928.0,0.02220398]
[1765129117904,0.23094547,90931.0,90930.0,0.02220398]
[1765129118117,0.23094026,90933.0,90930.0,0.08456398]
[1765129118320,0.01099698,90934.0,90933.0,0.02220398]
[1765129118918,0.2199615,90925.0,90919.0,0.03815108]
[1765129119119,0.2199615,90925.0,90904.0,9e-05]
[1765129119120,0.2200099,90905.0,90904.0,9e-05]
[1765129119318,0.2377699,90905.0,90904.0,9e-05]
[1765129119494,0.2382599,90905.0,90904.0,9e-05]
[1765129119697,0.2377699,90905.0,90904.0,9e-05]
[1765129120671,0.2392599,90905.0,90904.0,9e-05]
[1765129120805,0.2382599,90905.0,90904.0,9e-05]
[1765129121011,0.2200099,90905.0,90904.0,0.00035577]
[1765129121217,0.2387699,90905.0,90904.0,0.00035577]
[1765129121621,0.2377699,90905.0,90904.0,0.00035577]
[1765129121820,0.2230099,90905.0,90904.0,0.00035577]
[1765129122052,0.2407699,90905.0,90904.0,0.00035577]
[1765129122294,0.2230099,90905.0,90904.0,0.00035577]
[1765129122499,0.2407699,90905.0,90904.0,0.00035577]
[1765129124474,0.2230099,90905.0,90904.0,0.00035577]
[1765129124699,0.2407699,90905.0,90904.0,0.02255975]
[1765129124900,0.2230099,90905.0,90904.0,0.02417262]
[1765129125278,0.2709999,90905.0,90904.0,0.00035577]
[1765129125471,0.2709999,90905.0,90860.0,0.14202998]
[1765129125472,0.01100557,90863.0,90860.0,0.04954]
[1765129125627,0.23111716,90863.0,90862.0,0.02220398]
[1765129125832,0.24887716,90863.0,90862.0,0.08241398]
[1765129126033,0.23111716,90863.0,90862.0,0.17575775]
[1765129126267,0.24887716,90863.0,90862.0,0.17575775]
[1765129127308,0.24887716,90863.0,90862.0,0.17875775]
[1765129127855,0.24887716,90863.0,90862.0,0.09126775]
[1765129128079,0.24887716,90863.0,90862.0,0.03105775]
[1765129128404,0.24887716,90863.0,90862.0,0.02944488]
[1765129129470,0.23111716,90863.0,90862.0,0.0072409]
[1765129129686,0.24887716,90863.0,90862.0,0.02644488]
[1765129129887,0.24887716,90863.0,90862.0,0.03244488]
[1765129130309,0.23111716,90863.0,90862.0,0.03444488]
[1765129130516,0.24887716,90863.0,90862.0,0.03444488]
[1765129130845,0.24887716,90863.0,90862.0,0.18675775]
[1765129131045,0.24887716,90863.0,90862.0,0.03605775]
[1765129131852,0.24887716,90863.0,90862.0,0.01385377]
[1765129132655,0.28110716,90863.0,90862.0,0.0122409]
[1765129132852,0.29886716,90863.0,90862.0,0.0122409]
[1765129133434,0.36139015,90863.0,90862.0,0.0102409]
[1765129133633,0.36139015,90863.0,90862.0,0.0012409]
[1765129133837,0.36139015,90863.0,90862.0,0.0022409]
[1765129134005,0.36139015,90863.0,90862.0,0.0072409]
[1765129134199,0.36139015,90863.0,90862.0,0.0012409]
[1765129134684,0.36939015,90863.0,90862.0,0.0012409]
[1765129134836,0.35163015,90863.0,90862.0,0.0012409]
[1765129135225,0.69239015,90863.0,90862.0,0.0012409]
[1765129135647,0.71459413,90863.0,90862.0,0.0012409]
[1765129135852,0.35163015,90863.0,90862.0,0.0012409]
[1765129136068,0.36539015,90863.0,90862.0,0.0012409]
[1765129136291,0.36539015,90863.0,90862.0,1e-08]
[1765129136292,0.68839015,90863.0,90862.0,1e-08]
[1765129136477,0.36739015,90863.0,90862.0,1e-08]
[1765129136833,0.34963015,90863.0,90862.0,1e-08]
[1765129137037,0.36739015,90863.0,90862.0,1e-08]
[1765129137530,0.65513943,90861.0,90860.0,1e-08]
[1765129137751,0.69373131,90861.0,90860.0,1e-08]
[1765129137969,0.69422131,90861.0,90860.0,1e-08]
[1765129138471,0.67783341,90861.0,90860.0,1e-08]
[1765129140248,0.68083341,90861.0,90860.0,1e-08]
[1765129140846,0.34607365,90851.0,90850.0,1e-08]
[1765129141051,0.70401365,90851.0,90850.0,1e-08]
[1765129141259,0.79879964,90851.0,90850.0,1e-08]
[1765129141737,0.82100362,90851.0,90850.0,1e-08]
[1765129141998,0.70866763,90851.0,90850.0,1e-08]
[1765129142373,0.68646365,90851.0,90850.0,1e-08]
[1765129142584,0.70618365,90851.0,90850.0,1e-08]
[1765129142983,0.70418365,90851.0,90850.0,1e-08]
[1765129143352,0.64566066,90851.0,90850.0,1e-08]
[1765129143793,0.64166066,90851.0,90850.0,1e-08]
[1765129144140,0.65866066,90851.0,90850.0,1e-08]
[1765129144586,0.64466066,90851.0,90850.0,1e-08]
[1765129144803,0.62694066,90851.0,90850.0,1e-08]
[1765129145006,0.30377066,90851.0,90850.0,1e-08]
[1765129145137,0.32149066,90851.0,90850.0,1e-08]
[1765129145350,0.32449066,90851.0,90850.0,1e-08]
[1765129145734,0.30377066,90851.0,90850.0,1e-08]
[1765129145943,0.32149066,90851.0,90850.0,1e-08]
[1765129146302,0.003,90851.0,90850.0,0.00161288]
[1765129146496,0.003,90851.0,90850.0,0.34681686]
[1765129146497,0.02072,90851.0,90850.0,0.34681686]
[1765129146702,0.01772,90851.0,90850.0,0.34681686]
[1765129146882,0.01972,90851.0,90850.0,0.34681686]
[1765129147085,0.02272,90851.0,90850.0,0.34681686]
[1765129147290,0.01972,90851.0,90850.0,0.34681686]
[1765129147772,0.01972,90851.0,90850.0,0.34781686]
[1765129147977,0.01972,90851.0,90850.0,0.41361686]
[1765129148278,0.01772,90851.0,90850.0,0.50430686]
[1765129148471,0.01772,90851.0,90850.0,0.49466153]
[1765129149232,0.23114435,90853.0,90852.0,0.02220398]
[1765129149434,0.24886435,90853.0,90852.0,0.08800398]
[1765129149634,0.01772,90853.0,90852.0,0.17869398]
[1765129149840,0.01100327,90882.0,90878.0,0.01100376]
[1765129150044,0.01100255,90888.0,90887.0,0.02220398]
[1765129150258,0.01100255,90888.0,90883.0,0.04867]
[1765129150259,0.22002684,90898.0,90897.0,0.02220398]
[1765129150461,0.23774684,90898.0,90897.0,0.02220398]
[1765129150659,0.01100085,90902.0,90897.0,0.16749146]
[1765129150947,0.01100049,90905.0,90903.0,0.02220398]
[1765129151162,0.01099976,90911.0,90905.0,0.01100049]
[1765129151338,0.0109994,90914.0,90913.0,0.02220398]
[1765129151541,0.00039158,90914.0,90913.0,0.02220398]
[1765129151917,0.01811158,90914.0,90913.0,0.18141398]
[1765129152452,0.01811158,90914.0,90913.0,0.08583398]
[1765129153020,0.2380997,90914.0,90913.0,0.08583398]
[1765129153462,0.2380997,90914.0,90913.0,0.08683398]
[1765129155211,0.01811158,90914.0,90913.0,0.18241398]
[1765129156149,0.01811158,90914.0,90913.0,0.08683398]
[1765129157100,0.01811158,90914.0,90913.0,0.18241398]
[1765129157714,0.01811158,90914.0,90913.0,0.08683398]
[1765129157921,0.01811158,90914.0,90913.0,0.18241398]
[1765129160279,0.01811158,90914.0,90913.0,5.01544998]
[1765129160929,0.01811158,90914.0,90913.0,5.01444998]
[1765129161351,0.01811158,90914.0,90913.0,5.01644998]
[1765129161764,0.01811158,90914.0,90913.0,5.01744998]
[1765129161947,0.01099662,90937.0,90936.0,0.02220398]
[1765129162178,0.01099626,90940.0,90939.0,0.02220398]
[1765129162385,0.0111137,90940.0,90939.0,0.08583398]
[1765129162554,0.0288337,90940.0,90939.0,0.08583398]
[1765129163467,0.0288337,90940.0,90929.0,0.21995022]
[1765129163468,0.23097133,90921.0,90916.0,0.02220398]
[1765129163672,0.25618482,90919.0,90916.0,0.02220398]
[1765129163888,0.21998086,90917.0,90916.0,0.02220398]
[1765129164108,0.22001716,90902.0,90900.0,0.09558]
[1765129164324,0.22001716,90902.0,90898.0,0.04682]
[1765129164325,0.23773716,90902.0,90898.0,0.04682]
[1765129164535,0.23773716,90902.0,90901.0,0.07087398]
[1765129165092,0.01772,90902.0,90901.0,0.55308398]
[1765129165299,0.01100037,90906.0,90905.0,0.02220398]
[1765129165507,0.01100037,90906.0,90905.0,0.41983447]
[1765129165508,0.01783738,90906.0,90905.0,0.41983447]
[1765129165713,0.01783738,90906.0,90905.0,5.02545047]
[1765129166065,0.01783738,90906.0,90905.0,0.67041447]
[1765129166485,0.00011738,90906.0,90905.0,0.67041447]
[1765129166690,0.0109971,90933.0,90928.0,0.01099771]
[1765129166896,0.0109971,90933.0,90932.0,0.08583398]
[1765129167049,0.0109971,90933.0,90932.0,0.06363]
[1765129167255,0.23093725,90934.0,90933.0,0.02220398]
[1765129167450,0.23105543,90934.0,90933.0,0.08583398]
[1765129167682,0.24877543,90934.0,90933.0,0.08583398]
[1765129168073,0.24877543,90934.0,90925.0,0.01099807]
[1765129168074,0.21995908,90926.0,90925.0,0.02220398]
[1765129168423,0.21996876,90922.0,90921.0,0.06902398]
[1765129168626,0.23768876,90922.0,90921.0,0.06902398]
[1765129169735,0.2199857,90915.0,90914.0,0.02220398]
[1765129170030,0.22000022,90909.0,90907.0,0.1473]
[1765129170247,0.23101293,90904.0,90901.0,0.04867]
[1765129170462,0.23101293,90904.0,90903.0,0.02220398]
[1765129170919,0.23101293,90904.0,90901.0,0.07087398]
[1765129171160,0.22002442,90899.0,90895.0,0.02220398]
[1765129171450,0.22003168,90896.0,90895.0,0.02259556]
[1765129171592,0.23775168,90896.0,90895.0,0.02259556]
[1765129172404,0.23775168,90896.0,90895.0,0.02359556]
[1765129172608,0.00161287,90904.0,90903.0,0.02220398]
[1765129172973,0.02872061,90904.0,90903.0,0.08583398]
[1765129173199,0.02872061,90904.0,90903.0,0.18141398]
[1765129173375,0.02972061,90904.0,90903.0,0.18141398]
[1765129173574,0.02972061,90904.0,90903.0,0.08583398]
[1765129173575,0.02872061,90904.0,90903.0,0.08583398]
[1765129173934,0.22002442,90899.0,90898.0,0.02220398]
[1765129174155,0.01100085,90902.0,90901.0,0.02220398]
[1765129174355,0.01100085,90902.0,90896.0,0.323]
[1765129174356,0.01100122,90899.0,90896.0,0.323]
[1765129174540,0.02272,90904.0,90903.0,0.02220398]
[1765129174754,0.01772,90904.0,90903.0,0.08583398]
[1765129174958,0.01772,90904.0,90903.0,0.06363]
[1765129175318,0.01772,90904.0,90903.0,0.08583398]
[1765129175664,0.01772,90904.0,90902.0,0.04682]
[1765129175665,0.22001474,90903.0,90902.0,0.06902398]
[1765129175899,0.22001474,90903.0,90902.0,0.04682]
[1765129176112,0.23102564,90899.0,90896.0,0.001]
[1765129176274,0.01394,90897.0,90896.0,0.001]
[1765129176481,0.01506287,90897.0,90896.0,0.001]
[1765129176801,0.01933287,90897.0,90896.0,0.001]
[1765129177010,0.22003168,90896.0,90895.0,0.00039158]
[1765129177387,0.22164455,90896.0,90895.0,0.00039158]
[1765129177871,0.23936455,90896.0,90895.0,0.00039158]
[1765129178250,0.22003168,90896.0,90895.0,0.00039158]
[1765129178483,0.01100134,90898.0,90895.0,0.06402158]
[1765129178703,0.01772,90896.0,90895.0,0.06402158]
[1765129178895,0.22002987,90897.0,90895.0,0.06502158]
[1765129179178,0.22002987,90897.0,90895.0,0.00139158]
[1765129179179,0.01772,90896.0,90895.0,0.00139158]
[1765129179716,0.01972,90896.0,90895.0,0.00139158]
[1765129180130,0.01972,90896.0,90895.0,0.00039158]
[1765129180364,0.01972,90896.0,90895.0,0.00139158]
[1765129180583,0.01772,90896.0,90895.0,0.00139158]
[1765129180752,0.01772,90896.0,90895.0,0.02259556]
[1765129180998,0.01772,90896.0,90895.0,0.18180556]
[1765129180999,0.002,90896.0,90895.0,0.18180556]
[1765129181204,0.01972,90896.0,90895.0,0.53341869]
[1765129181374,0.01972,90896.0,90895.0,0.50480556]
[1765129181937,0.01972,90896.0,90895.0,4.27920556]
[1765129182149,0.01972,90896.0,90895.0,0.50580556]
[1765129182693,0.01972,90896.0,90895.0,0.32439158]
[1765129182694,0.01772,90896.0,90895.0,0.32439158]
[1765129183102,0.23975168,90896.0,90895.0,0.00139158]
[1765129183322,0.23975168,90896.0,90895.0,0.00039158]
[1765129183323,0.23775168,90896.0,90895.0,0.00039158]
[1765129183519,0.23775168,90896.0,90895.0,0.00239158]
[1765129183735,0.23775168,90896.0,90895.0,0.00339158]
[1765129184040,0.23775168,90896.0,90895.0,0.00039158]
[1765129184345,0.23875168,90896.0,90895.0,0.00039158]
[1765129184486,0.23775168,90896.0,90895.0,0.00139158]
[1765129184694,0.01100097,90901.0,90895.0,0.00139158]
[1765129184695,0.01100049,90905.0,90903.0,0.02220398]
[1765129185038,0.01772,90904.0,90903.0,0.02220398]
[1765129185259,0.01772,90904.0,90903.0,0.12108398]
[1765129185389,0.23100024,90909.0,90903.0,0.12108398]
[1765129185390,0.01100001,90909.0,90905.0,0.03320447]
[1765129185593,0.23099719,90911.0,90905.0,0.03320447]
[1765129185594,0.01772,90908.0,90906.0,0.01100037]
[1765129185798,0.01772,90908.0,90907.0,0.02220398]
[1765129186024,0.01099964,90912.0,90911.0,0.02220398]
[1765129186198,0.0109994,90914.0,90911.0,0.06347]
[1765129186415,0.2199857,90915.0,90913.0,0.323]
[1765129186612,0.01200049,90905.0,90903.0,0.0286309]
[1765129186807,0.01772,90904.0,90902.0,0.39412398]
[1765129187012,0.01772,90904.0,90903.0,0.02863141]
[1765129187277,0.01772,90904.0,90903.0,0.16235]
[1765129187480,0.01100025,90907.0,90906.0,0.02220398]
[1765129187685,0.02872025,90907.0,90906.0,0.02220398]
[1765129187886,0.01772,90907.0,90906.0,0.50755398]
[1765129188297,0.01772,90907.0,90906.0,0.18455398]
[1765129188298,0.23772506,90907.0,90906.0,0.18455398]
[1765129188501,0.23772506,90907.0,90906.0,0.08567398]
[1765129188615,0.01772,90907.0,90906.0,0.08567398]
[1765129188822,0.06722,90907.0,90906.0,0.02220398]
[1765129189032,0.06722,90907.0,90895.0,0.02901944]
[1765129189033,0.220022,90900.0,90895.0,0.02901944]
[1765129189268,0.22003168,90896.0,90895.0,0.00039158]
[1765129189468,0.23985455,90896.0,90895.0,0.00039158]
[1765129189680,0.28886455,90896.0,90895.0,0.00039158]
[1765129189890,0.37359152,90896.0,90895.0,0.00039158]
[1765129190105,0.37359152,90896.0,90861.0,0.05625002]
[1765129190106,0.01100545,90864.0,90861.0,0.02862786]
[1765129190298,0.01100545,90864.0,90850.0,0.05625002]
[1765129190299,0.22011401,90862.0,90855.0,0.02862786]
[1765129190527,0.22012855,90856.0,90854.0,0.02886429]
[1765129190864,0.22012855,90856.0,90854.0,0.00023643]
[1765129191069,0.24586855,90856.0,90854.0,0.00023643]
[1765129191271,0.00049,90855.0,90854.0,0.00023643]
[1765129191408,0.0495,90855.0,90854.0,0.00023643]
[1765129192612,0.0495,90855.0,90854.0,0.00123643]
[1765129193084,0.0555,90855.0,90854.0,0.00123643]
[1765129193292,0.0555,90855.0,90854.0,0.00023643]
[1765129193497,0.0565,90855.0,90854.0,0.00023643]
[1765129193698,0.00749,90855.0,90854.0,0.00023643]
[1765129194149,0.05811287,90855.0,90854.0,0.00023643]
[1765129194760,0.12063586,90855.0,90854.0,0.00023643]
[1765129195581,0.11363586,90855.0,90854.0,0.00023643]
[1765129195792,0.11463586,90855.0,90854.0,0.00023643]
[1765129195999,0.13235586,90855.0,90854.0,0.00023643]
[1765129196208,0.13635586,90855.0,90854.0,0.00023643]
[1765129196434,0.13135586,90855.0,90854.0,0.00023643]
[1765129196641,0.05111287,90855.0,90854.0,0.00023643]
[1765129196844,0.07383287,90855.0,90854.0,0.00023643]
[1765129197051,0.00910287,90855.0,90854.0,0.00023643]
[1765129197251,0.00861287,90855.0,90854.0,0.00023643]
[1765129197465,0.02633287,90855.0,90854.0,0.00023643]
[1765129197670,0.02133287,90855.0,90854.0,0.00023643]
[1765129198497,0.01933287,90855.0,90854.0,0.00023643]
[1765129198704,0.01972,90855.0,90854.0,0.00023643]
[1765129198908,0.01972,90855.0,90854.0,0.50023643]
[1765129199305,0.02272,90855.0,90854.0,0.68766041]
[1765129199566,0.23111716,90863.0,90862.0,0.02220398]
[1765129199567,0.23111893,90863.0,90862.0,0.02220398]
[1765129199764,0.24883893,90863.0,90862.0,0.02220398]
[1765129199965,0.24883893,90863.0,90856.0,0.02220398]
[1765129199966,0.23113358,90857.0,90856.0,0.02220398]
[1765129200148,0.01100606,90859.0,90855.0,0.323]
[1765129200380,0.01100606,90859.0,90858.0,0.02220398]
[1765129200819,0.00039369,90864.0,90863.0,0.02220398]
[1765129201025,0.01811369,90864.0,90863.0,0.13418398]
[1765129201229,0.01811369,90864.0,90863.0,0.23322398]
[1765129201625,0.23822286,90864.0,90863.0,0.06800398]
[1765129201863,0.23822286,90864.0,90863.0,0.0458]
[1765129202292,0.22012601,90858.0,90856.0,0.002]
[1765129202496,0.01481343,90857.0,90856.0,0.002]
[1765129202895,0.22012855,90856.0,90840.0,0.09904]
[1765129203134,0.22012855,90856.0,90842.0,0.01100812]
[1765129203345,0.22012855,90856.0,90840.0,0.09904]
[1765129203547,0.22012855,90856.0,90839.0,0.1473]
[1765129203751,0.22012855,90856.0,90845.0,0.01100776]
[1765129203954,0.01772,90855.0,90848.0,0.01100739]
[1765129204159,0.01772,90855.0,90846.0,0.01100763]
[1765129204363,0.22012855,90856.0,90848.0,0.01100739]
[1765129204585,0.01772,90855.0,90854.0,1.03164552]
[1765129204791,0.01100618,90858.0,90857.0,0.02220398]
[1765129204999,0.23112897,90859.0,90857.0,0.02220398]
[1765129205000,0.01100606,90859.0,90858.0,0.02220398]
[1765129205220,0.01100606,90859.0,90858.0,0.51042398]
[1765129205418,0.00039369,90864.0,90863.0,0.02220398]
[1765129205590,0.00039369,90864.0,90863.0,0.08838398]
[1765129205767,0.00039369,90864.0,90863.0,0.18742398]
[1765129206016,0.00039369,90864.0,90863.0,0.51042398]
[1765129206216,0.01811369,90864.0,90863.0,0.51042398]
[1765129206941,0.00139369,90864.0,90863.0,0.51042398]
[1765129207243,0.01811369,90864.0,90863.0,2.21442398]
[1765129207665,0.00039369,90864.0,90863.0,2.21742398]
[1765129207835,0.01100158,90896.0,90895.0,0.02220398]
[1765129208083,0.01100158,90896.0,90895.0,0.02232136]
[1765129208256,0.02872158,90896.0,90895.0,0.00011738]
[1765129208465,0.04353501,90896.0,90895.0,0.00011738]
[1765129208831,0.09464788,90896.0,90895.0,0.00011738]
[1765129209029,0.09513788,90896.0,90895.0,0.00011738]
[1765129209284,0.15766087,90896.0,90895.0,0.00011738]
[1765129209484,0.50286485,90896.0,90895.0,0.00011738]
[1765129209729,0.50286485,90896.0,90851.0,0.01100703]
[1765129209730,0.0110063,90857.0,90855.0,0.02220398]
[1765129209905,0.23784855,90856.0,90855.0,0.34520398]
[1765129210078,0.23784855,90856.0,90855.0,0.02220398]
[1765129210288,0.01772,90856.0,90855.0,0.34520398]
[1765129211327,0.01772,90856.0,90855.0,0.34720398]
[1765129212063,0.01772,90856.0,90855.0,0.34820398]
[1765129212464,0.01772,90856.0,90855.0,0.34620398]
[1765129212670,0.01772,90856.0,90855.0,0.35120398]
[1765129213130,0.01772,90856.0,90855.0,0.34620398]
[1765129213369,0.01772,90856.0,90855.0,0.324]
[1765129213525,0.01772,90856.0,90855.0,0.003]
[1765129214089,0.06722,90856.0,90855.0,0.003]
[1765129214296,0.06722,90856.0,90855.0,0.001]
[1765129214848,0.22013097,90855.0,90832.0,0.03953885]
[1765129215061,0.22013097,90855.0,90839.0,0.01100848]
[1765129215270,0.22013097,90855.0,90836.0,0.01100885]
[1765129215472,0.22174384,90855.0,90835.0,0.01100897]
[1765129215901,0.22174384,90855.0,90837.0,0.01100872]
[1765129216101,0.22174384,90855.0,90833.0,0.01100921]
[1765129216306,0.22374384,90855.0,90833.0,0.02852952]
[1765129216531,0.22374384,90855.0,90832.0,0.10200933]
[1765129216723,0.22374384,90855.0,90833.0,0.01100921]
[1765129216930,0.22374384,90855.0,90834.0,0.01100909]
[1765129217134,0.22174384,90855.0,90833.0,0.01100921]
[1765129217368,0.22174384,90855.0,90833.0,0.03953873]
[1765129217562,0.22374384,90855.0,90837.0,0.01100872]
[1765129217807,0.22374384,90855.0,90838.0,0.0110086]
[1765129218006,0.22374384,90855.0,90839.0,0.091]
[1765129219102,0.22374384,90855.0,90837.0,0.02852952]
[1765129219314,0.22374384,90855.0,90838.0,0.02852952]
[1765129220266,0.22374384,90855.0,90839.0,0.02852952]
[1765129220482,0.59624384,90855.0,90830.0,0.03803936]
[1765129220794,0.59624384,90855.0,90820.0,0.02852952]
[1765129220795,0.65876683,90855.0,90820.0,0.02852952]
[1765129221005,0.68097081,90855.0,90819.0,0.02852952]
[1765129221195,0.24146384,90855.0,90833.0,0.04639]
[1765129221579,0.29096384,90855.0,90833.0,0.04639]
[1765129222171,0.29596384,90855.0,90833.0,0.04639]
[1765129222382,0.28896384,90855.0,90833.0,0.04639]
[1765129222744,0.28896384,90855.0,90821.0,0.24874145]
[1765129222745,0.77381347,90855.0,90821.0,0.02852952]
[1765129222967,0.77381347,90855.0,90814.0,0.02852952]
[1765129222968,0.70569081,90855.0,90814.0,0.02852952]
[1765129223162,0.70569081,90855.0,90817.0,0.05740115]
[1765129223163,0.69869081,90855.0,90817.0,0.05740115]
[1765129223332,0.69869081,90855.0,90817.0,0.04639]
[1765129223333,0.70469081,90855.0,90817.0,0.04639]
[1765129223743,0.69869081,90855.0,90817.0,0.04639]
[1765129223918,0.67448683,90855.0,90819.0,0.091]
[1765129224335,0.67648683,90855.0,90817.0,0.07491952]
[1765129224557,0.69869081,90855.0,90854.0,0.47193133]
[1765129224753,0.75672234,90855.0,90854.0,0.47193133]
[1765129224961,0.69969081,90855.0,90854.0,0.47193133]
[1765129225308,0.22023763,90811.0,90810.0,0.0004]
[1765129225531,0.23795763,90811.0,90810.0,0.00079369]
[1765129225764,0.01772,90811.0,90810.0,0.00079369]
[1765129225979,0.23124588,90813.0,90812.0,0.02220398]
[1765129226202,0.24896588,90813.0,90812.0,0.02220398]
[1765129226405,0.24896588,90813.0,90810.0,0.00079369]
[1765129227976,0.0005,90811.0,90810.0,0.00079369]
[1765129228390,0.04972,90811.0,90810.0,0.00079369]
[1765129229310,0.04972,90811.0,90810.0,0.00179369]
[1765129229672,0.04972,90811.0,90810.0,0.00079369]
[1765129229871,0.05072,90811.0,90810.0,0.00079369]
[1765129230258,0.05172,90811.0,90810.0,0.00079369]
[1765129230691,0.05233287,90811.0,90810.0,0.00079369]
[1765129231100,0.05433287,90811.0,90810.0,0.00209478]
[1765129232499,0.05433287,90811.0,90810.0,0.06338478]
[1765129232500,0.003,90811.0,90810.0,0.06338478]
[1765129232670,0.02072,90811.0,90810.0,0.06338478]
[1765129233050,0.003,90811.0,90810.0,0.06338478]
[1765129233266,0.01972,90811.0,90810.0,0.00209478]
[1765129233424,0.01972,90811.0,90810.0,0.02429876]
[1765129233830,0.01772,90811.0,90810.0,0.02429876]
[1765129234056,0.01772,90811.0,90810.0,0.02729876]
[1765129234260,0.001,90811.0,90810.0,0.02729876]
[1765129234466,0.01872,90811.0,90810.0,0.17958876]
[1765129234667,0.01101163,90813.0,90812.0,0.02220398]
[1765129235083,0.01772,90814.0,90813.0,0.02220398]
[1765129235284,0.01772,90814.0,90813.0,0.08349398]
[1765129235496,0.01101127,90816.0,90813.0,0.17449398]
[1765129235708,0.01101042,90823.0,90820.0,0.02220398]
[1765129235863,0.24894354,90822.0,90821.0,0.02220398]
[1765129236060,0.01101006,90826.0,90823.0,0.02220398]
[1765129236266,0.01772,90825.0,90824.0,0.35621428]
[1765129236638,0.01100897,90835.0,90834.0,0.02220398]
[1765129236752,0.01100824,90841.0,90836.0,0.38039885]
[1765129236995,0.04016,90858.0,90836.0,0.04639]
[1765129237172,0.04016,90858.0,90812.0,0.01101176]
[1765129237173,0.01101066,90821.0,90812.0,0.01101176]
[1765129237408,0.01101066,90821.0,90815.0,0.02220398]
[1765129237615,0.23793581,90820.0,90815.0,0.02220398]
[1765129237813,0.01772,90820.0,90819.0,0.02220398]
[1765129237989,0.01772,90820.0,90819.0,0.08349398]
[1765129238194,0.01101127,90816.0,90810.0,0.32379369]
[1765129238419,0.22022793,90815.0,90814.0,0.02220398]
[1765129238826,0.22023763,90811.0,90810.0,0.34599767]
[1765129239029,0.22023763,90811.0,90810.0,0.00079369]
[1765129239429,0.22023763,90811.0,90810.0,0.00679369]
[1765129239616,0.22023763,90811.0,90810.0,0.00079369]
[1765129240013,0.22023521,90812.0,90810.0,0.00679369]
[1765129240392,0.01772,90811.0,90810.0,0.17528767]
[1765129240532,0.01101079,90820.0,90816.0,0.01101127]
[1765129240734,0.01101006,90826.0,90820.0,0.10768]
[1765129240957,0.23793096,90822.0,90821.0,0.02220398]
[1765129241402,0.23793096,90822.0,90821.0,0.02317968]
[1765129242531,0.23793096,90822.0,90821.0,0.0649157]
[1765129242737,0.23793096,90822.0,90821.0,0.08711968]
[1765129242939,0.23793096,90822.0,90821.0,0.18315968]
[1765129243350,0.23793096,90822.0,90821.0,0.08911968]
[1765129243549,0.23793096,90822.0,90821.0,0.02317968]
[1765129244061,0.23793096,90822.0,90821.0,0.02417968]
[1765129244219,0.23793096,90822.0,90821.0,0.0019757]
[1765129244590,0.23793096,90822.0,90821.0,0.0009757]
[1765129244947,0.23793096,90822.0,90821.0,0.0049757]
[1765129245331,0.23793096,90822.0,90821.0,0.0039757]
[1765129245931,0.23793096,90822.0,90821.0,0.0009757]
[1765129246136,0.23793096,90822.0,90821.0,0.0649157]
[1765129246588,0.23793096,90822.0,90821.0,0.0009757]
[1765129246927,0.23793096,90822.0,90821.0,0.0029757]
[1765129247386,0.01772,90822.0,90821.0,0.1629557]
[1765129247573,0.23121653,90824.0,90823.0,0.02220398]
[1765129247748,0.24893653,90824.0,90823.0,0.08414398]
[1765129248255,0.24893653,90824.0,90821.0,0.02520398]
[1765129248256,0.22021096,90822.0,90821.0,0.02520398]
[1765129248596,0.22022308,90817.0,90815.0,0.0997235]
[1765129248804,0.22022308,90817.0,90815.0,0.07119398]
[1765129249010,0.22022308,90817.0,90816.0,0.06194]
[1765129249362,0.22022308,90817.0,90816.0,0.15998]
[1765129250026,0.01101054,90822.0,90818.0,0.22022058]
[1765129250178,0.25287601,90825.0,90824.0,0.02220398]
[1765129250382,0.02873018,90825.0,90824.0,0.08414398]
[1765129250580,0.24893386,90825.0,90824.0,0.18218398]
[1765129250781,0.02873018,90825.0,90824.0,0.18218398]
[1765129251081,0.24893386,90825.0,90824.0,0.18218398]
[1765129251283,0.01101066,90821.0,90817.0,0.02852952]
[1765129251503,0.23122677,90820.0,90817.0,0.12656952]
[1765129251713,0.23122677,90820.0,90819.0,0.02220398]
[1765129251922,0.23122677,90820.0,90819.0,0.08414398]
[1765129252287,0.22022308,90817.0,90815.0,0.02852952]
[1765129252480,0.22023278,90813.0,90811.0,0.02852952]
[1765129252761,0.22023278,90813.0,90810.0,0.00079369]
[1765129252762,0.22023763,90811.0,90810.0,0.00079369]
[1765129252960,0.22121763,90811.0,90810.0,0.00079369]
[1765129253158,0.26974763,90811.0,90810.0,0.00079369]
[1765129253408,0.26974763,90811.0,90810.0,0.00209478]
[1765129254363,0.27074763,90811.0,90810.0,0.00209478]
[1765129254563,0.22221763,90811.0,90810.0,0.00209478]
[1765129254789,0.27026763,90811.0,90810.0,0.00209478]
[1765129255014,0.22173763,90811.0,90810.0,0.00409478]
[1765129255304,0.23847763,90811.0,90810.0,0.00209478]
[1765129255651,0.24047763,90811.0,90810.0,0.00209478]
[1765129255964,0.22075763,90811.0,90810.0,0.00209478]
[1765129256161,0.02124,90811.0,90810.0,0.17566876]
[1765129256570,0.01824,90811.0,90810.0,0.08518876]
[1765129256769,0.01824,90811.0,90810.0,0.00209478]
[1765129256978,0.01924,90811.0,90810.0,0.00209478]
[1765129257409,0.01824,90811.0,90810.0,0.00209478]
[1765129257998,0.02024,90811.0,90810.0,0.00209478]
[1765129258207,0.02073,90811.0,90810.0,0.00209478]
[1765129258627,0.01873,90811.0,90810.0,0.00209478]
[1765129259033,0.23847763,90811.0,90810.0,0.00309478]
[1765129259260,0.22075763,90811.0,90810.0,0.00209478]
[1765129259463,0.23847763,90811.0,90810.0,0.02429876]
[1765129260269,0.23947763,90811.0,90810.0,0.02429876]
[1765129260837,0.23847763,90811.0,90810.0,0.02429876]
[1765129261083,0.23896763,90811.0,90810.0,0.00209478]
[1765129261290,0.23896763,90811.0,90810.0,0.00309478]
[1765129262106,0.23896763,90811.0,90810.0,0.00209478]
[1765129262362,0.28997763,90811.0,90810.0,0.00182478]
[1765129262578,0.29097763,90811.0,90810.0,0.00182478]
[1765129262998,0.28997763,90811.0,90810.0,0.00182478]
[1765129263444,0.29097763,90811.0,90810.0,0.00182478]
[1765129263852,0.24196763,90811.0,90810.0,0.00182478]
[1765129263973,0.22375763,90811.0,90810.0,0.00182478]
[1765129264180,0.24147763,90811.0,90810.0,0.00182478]